bitfinex/quotes_BTCUSD_20250115
["timestamp","ask_amount","ask_price","bid_price","bid_amount"]
[1736957598381,0.00814986,99543.0,99542.0,1.51208659]
[1736957598586,0.023,99548.0,99542.0,1.51208659]
[1736957598811,0.023,99548.0,99542.0,1.51608659]
[1736957599218,0.023,99548.0,99542.0,0.01208659]
[1736957599421,0.00090483,99550.0,99549.0,0.02710063]
[1736957599620,0.00090483,99550.0,99549.0,1.52710063]
[1736957599816,0.00090483,99550.0,99549.0,1.5331666]
[1736957600239,0.00090483,99550.0,99549.0,1.50606597]
[1736957600446,0.00090483,99550.0,99549.0,1.5331666]
[1736957600642,0.20180883,99550.0,99549.0,1.51106597]
[1736957600847,0.20180883,99550.0,99549.0,1.50606597]
[1736957601269,0.20180883,99550.0,99549.0,1.51506597]
[1736957602337,0.22480883,99550.0,99549.0,0.02006597]
[1736957602648,0.22480883,99550.0,99549.0,0.005]
[1736957602900,0.00090483,99550.0,99549.0,0.005]
[1736957603144,0.00917309,99550.0,99549.0,0.013]
[1736957603376,0.00917309,99550.0,99549.0,0.13632755]
[1736957603585,0.00917309,99550.0,99549.0,0.14339791]
[1736957603811,0.00917309,99550.0,99549.0,0.14839791]
[1736957604013,0.00917309,99550.0,99549.0,1.64339791]
[1736957604251,0.00917309,99550.0,99549.0,1.64539352]
[1736957604483,0.00917309,99550.0,99549.0,1.64139352]
[1736957604725,0.00917309,99550.0,99549.0,1.6516193]
[1736957604994,0.00090483,99550.0,99549.0,1.6476193]
[1736957605522,0.00090483,99550.0,99549.0,0.01206597]
[1736957605717,0.00090483,99550.0,99549.0,0.0391666]
[1736957605944,0.00090483,99550.0,99549.0,0.0331666]
[1736957606171,0.00090483,99550.0,99549.0,0.0411666]
[1736957606375,0.00090483,99550.0,99549.0,0.0501666]
[1736957606786,0.00090483,99550.0,99549.0,0.0411666]
[1736957607129,0.00090483,99550.0,99549.0,0.02306597]
[1736957607361,0.02390483,99550.0,99549.0,0.02306597]
[1736957607616,0.02390483,99550.0,99549.0,0.009]
[1736957607868,0.02390483,99550.0,99549.0,0.016]
[1736957608322,0.223906,99549.0,99541.0,1.5]
[1736957608764,0.00090483,99550.0,99542.0,0.00598419]
[1736957608991,0.023,99548.0,99542.0,0.00598419]
[1736957609301,0.023,99548.0,99540.0,0.02710063]
[1736957609455,0.20091,99547.0,99543.0,1.5]
[1736957609678,0.023,99548.0,99543.0,1.5]
[1736957609887,0.023,99548.0,99544.0,0.00597496]
[1736957610378,0.00090483,99550.0,99544.0,0.00597496]
[1736957610866,0.023,99548.0,99544.0,0.00597496]
[1736957611468,0.00090483,99550.0,99549.0,0.02710063]
[1736957611701,0.00090483,99550.0,99549.0,0.03306992]
[1736957612897,0.00090483,99550.0,99549.0,0.00596929]
[1736957613101,0.00090483,99550.0,99549.0,0.01496929]
[1736957613307,0.00090483,99550.0,99549.0,0.009]
[1736957613523,0.00090483,99550.0,99549.0,1.51496929]
[1736957614024,0.00090483,99550.0,99549.0,1.52096929]
[1736957615269,0.00090483,99550.0,99549.0,0.02096929]
[1736957615831,0.00090483,99550.0,99549.0,0.015]
[1736957616526,0.00090483,99550.0,99549.0,0.03310063]
[1736957616731,0.00090483,99550.0,99549.0,0.04406992]
[1736957616920,0.00090483,99550.0,99549.0,1.53906992]
[1736957617293,0.00090483,99550.0,99549.0,1.54206992]
[1736957617712,0.00090483,99550.0,99549.0,1.54606992]
[1736957618268,0.00090483,99550.0,99549.0,1.54206992]
[1736957618432,0.00090483,99550.0,99549.0,1.54806992]
[1736957620929,0.00090483,99550.0,99549.0,0.04806992]
[1736957621154,0.00090483,99550.0,99549.0,0.02096929]
[1736957621797,0.00090483,99550.0,99549.0,0.01496929]
[1736957621943,0.00090483,99550.0,99549.0,0.01896929]
[1736957622150,0.20180883,99550.0,99549.0,0.01896929]
[1736957622349,0.20180883,99550.0,99549.0,0.004]
[1736957622802,0.20180883,99550.0,99549.0,0.01]
[1736957623001,0.20180883,99550.0,99549.0,0.004]
[1736957623572,0.20180883,99550.0,99542.0,1.5]
[1736957623754,0.20180883,99550.0,99549.0,0.01095604]
[1736957623954,0.20180883,99550.0,99549.0,0.012]
[1736957624186,0.20180883,99550.0,99549.0,0.007]
[1736957624447,0.20180883,99550.0,99549.0,0.012]
[1736957625831,0.22480883,99550.0,99549.0,0.012]
[1736957626412,0.2329437,99550.0,99549.0,0.012]
[1736957626623,0.2329437,99550.0,99549.0,0.005]
[1736957627173,0.2329437,99550.0,99549.0,0.004]
[1736957627298,0.200918,99543.0,99537.0,1.5]
[1736957627874,0.200918,99543.0,99538.0,0.00599613]
[1736957628079,0.200926,99539.0,99538.0,0.00599613]
[1736957628251,0.023,99538.0,99530.0,0.00179487]
[1736957628504,0.200938,99533.0,99530.0,0.00179487]
[1736957628706,0.200931,99537.0,99530.0,0.00179487]
[1736957628922,0.401862,99537.0,99530.0,0.00179487]
[1736957629560,0.200919,99543.0,99533.0,0.02710063]
[1736957629908,0.401838,99543.0,99533.0,0.02710063]
[1736957630366,0.401838,99543.0,99537.0,0.004]
[1736957630367,0.200925,99540.0,99537.0,0.004]
[1736957631036,0.02368545,99542.0,99533.0,0.006]
[1736957631221,0.200933,99536.0,99533.0,0.006]
[1736957631456,0.200933,99536.0,99533.0,0.03110063]
[1736957631660,0.401866,99536.0,99533.0,0.004]
[1736957631868,0.200933,99536.0,99530.0,0.00179487]
[1736957632070,0.200934,99535.0,99530.0,0.00179487]
[1736957633376,0.200934,99535.0,99530.0,0.00879487]
[1736957633585,0.200912,99546.0,99536.0,0.02710063]
[1736957633789,0.00090483,99550.0,99530.0,0.11302179]
[1736957633790,0.200906,99549.0,99541.0,0.02710063]
[1736957634297,0.200913,99546.0,99541.0,0.02710063]
[1736957635094,0.00090483,99550.0,99541.0,0.03010063]
[1736957635261,0.200906,99549.0,99541.0,0.03010063]
[1736957635472,0.200906,99549.0,99542.0,0.00609204]
[1736957636078,0.200906,99549.0,99543.0,1.5]
[1736957636488,0.200906,99549.0,99544.0,0.00608977]
[1736957636696,0.200914,99545.0,99544.0,0.00608977]
[1736957637105,0.200906,99549.0,99544.0,0.00608977]
[1736957637683,0.200906,99549.0,99544.0,0.00908977]
[1736957638462,0.200906,99549.0,99544.0,0.00608977]
[1736957638576,0.200914,99545.0,99544.0,0.00608977]
[1736957638782,0.200914,99545.0,99544.0,0.00908977]
[1736957639232,0.200908,99548.0,99544.0,0.00908977]
[1736957639433,0.200908,99548.0,99544.0,0.01208977]
[1736957640069,0.200908,99548.0,99544.0,0.00908977]
[1736957640276,0.200908,99548.0,99544.0,0.00608977]
[1736957640485,0.200908,99548.0,99544.0,0.01408977]
[1736957640832,0.200908,99548.0,99544.0,0.01108977]
[1736957641293,0.200908,99548.0,99544.0,0.01508977]
[1736957642286,0.00090483,99550.0,99546.0,0.02710063]
[1736957642516,0.00090483,99550.0,99548.0,0.02710063]
[1736957642752,0.00090483,99550.0,99549.0,0.02710063]
[1736957642987,0.00090483,99550.0,99549.0,0.03314424]
[1736957644182,0.00090483,99550.0,99549.0,0.03714424]
[1736957644898,0.43503428,99550.0,99549.0,0.01004361]
[1736957645100,0.56157575,99550.0,99549.0,0.01304361]
[1736957645290,0.56157575,99550.0,99549.0,0.007]
[1736957646355,0.173,99549.0,99530.0,0.00179487]
[1736957646526,0.200942,99531.0,99530.0,0.00179487]
[1736957647374,0.223942,99531.0,99530.0,0.00179487]
[1736957647758,0.223942,99531.0,99530.0,0.00779487]
[1736957648110,0.223942,99531.0,99530.0,0.00579487]
[1736957649365,0.23414139,99531.0,99530.0,0.00279487]
[1736957649520,0.46314139,99531.0,99530.0,0.00279487]
[1736957649727,0.46314139,99531.0,99530.0,0.00479487]
[1736957649926,0.46314139,99531.0,99530.0,0.00679487]
[1736957650130,0.46314139,99531.0,99530.0,0.00379487]
[1736957650330,0.46314139,99531.0,99530.0,0.00179487]
[1736957650540,0.46614139,99531.0,99530.0,0.00279487]
[1736957650970,0.46314139,99531.0,99530.0,0.00179487]
[1736957651375,0.46514139,99531.0,99530.0,0.00279487]
[1736957653006,0.38614139,99531.0,99530.0,0.00279487]
[1736957657987,0.49036831,99531.0,99530.0,0.00279487]
[1736957658190,0.61036768,99531.0,99530.0,0.00279487]
[1736957659949,0.61122238,99531.0,99530.0,0.00279487]
[1736957665417,0.36399609,99531.0,99530.0,0.00279487]
[1736957665829,0.38699609,99531.0,99530.0,0.00279487]
[1736957666208,0.39363609,99531.0,99530.0,0.00279487]
[1736957666433,0.39363609,99531.0,99530.0,0.00179487]
[1736957666434,0.49786301,99531.0,99530.0,0.00179487]
[1736957666636,0.56876238,99531.0,99530.0,0.00379487]
[1736957667352,0.56876238,99531.0,99530.0,0.00179487]
[1736957667353,0.75186238,99531.0,99530.0,0.00179487]
[1736957667763,0.79896238,99531.0,99530.0,0.00179487]
[1736957667965,0.80096238,99531.0,99530.0,0.00179487]
[1736957668386,0.79896238,99531.0,99530.0,0.00179487]
[1736957668531,0.80096238,99531.0,99530.0,0.00279487]
[1736957668735,0.80096238,99531.0,99530.0,0.00379487]
[1736957668938,0.88790318,99531.0,99530.0,0.00379487]
[1736957669177,0.91934445,99531.0,99530.0,0.00379487]
[1736957669750,0.91734445,99531.0,99530.0,0.00179487]
[1736957670052,0.91934445,99531.0,99530.0,0.00279487]
[1736957670287,0.83240365,99531.0,99530.0,0.00279487]
[1736957670669,0.80096238,99531.0,99530.0,0.00279487]
[1736957672773,0.55132301,99531.0,99530.0,0.00279487]
[1736957672975,0.46822301,99531.0,99530.0,0.00279487]
[1736957673182,0.32486301,99531.0,99530.0,0.00279487]
[1736957673384,0.31822301,99531.0,99530.0,0.00279487]
[1736957673589,0.47486301,99531.0,99530.0,0.00279487]
[1736957673990,0.47286301,99531.0,99530.0,0.00179487]
[1736957674168,0.49786301,99531.0,99530.0,0.00179487]
[1736957674606,0.49586301,99531.0,99530.0,0.00179487]
[1736957674809,0.49686301,99531.0,99530.0,0.00179487]
[1736957675664,0.49686301,99531.0,99530.0,0.00279487]
[1736957677207,0.39263609,99531.0,99530.0,0.00279487]
[1736957681036,0.38599609,99531.0,99530.0,0.00279487]
[1736957681251,0.01205409,99531.0,99530.0,0.00279487]
[1736957681452,0.0018547,99531.0,99530.0,0.15750224]
[1736957681865,0.0018547,99531.0,99530.0,0.1596693]
[1736957682069,0.0008547,99531.0,99530.0,0.1596693]
[1736957682272,0.0008547,99531.0,99530.0,0.1586693]
[1736957682479,0.0008547,99531.0,99530.0,0.1656693]
[1736957682689,0.0008547,99531.0,99530.0,0.13856867]
[1736957682892,0.0008547,99531.0,99530.0,1.63856867]
[1736957683311,0.0008547,99531.0,99530.0,1.63556867]
[1736957683465,0.0008547,99531.0,99530.0,1.63956867]
[1736957683670,0.0008547,99531.0,99530.0,1.63556867]
[1736957683875,0.0008547,99531.0,99530.0,1.64156867]
[1736957685598,0.0008547,99531.0,99530.0,0.01846867]
[1736957688799,0.0238547,99531.0,99530.0,0.01846867]
[1736957688913,0.02454015,99531.0,99530.0,0.01846867]
[1736957689141,0.0238547,99531.0,99530.0,0.01179487]
[1736957689553,0.0238547,99531.0,99530.0,0.00779487]
[1736957689758,0.0238547,99531.0,99530.0,0.00179487]
[1736957689955,0.0238547,99531.0,99530.0,0.00279487]
[1736957690159,0.0238547,99531.0,99530.0,1.50279487]
[1736957690395,0.0238547,99531.0,99530.0,1.50179487]
[1736957690592,0.0238547,99531.0,99530.0,1.50837749]
[1736957690795,0.0238547,99531.0,99530.0,1.51137749]
[1736957691054,0.0008547,99531.0,99530.0,1.51137749]
[1736957691222,0.0008547,99531.0,99530.0,1.66197812]
[1736957691733,0.0008547,99531.0,99530.0,1.65897812]
[1736957692108,0.0008547,99531.0,99530.0,1.66197812]
[1736957692919,0.0008547,99531.0,99530.0,1.77609788]
[1736957693135,0.0008547,99531.0,99530.0,1.76620504]
[1736957693369,0.0008547,99531.0,99530.0,1.66197812]
[1736957693575,0.0008547,99531.0,99530.0,1.66397812]
[1736957693939,0.0008547,99531.0,99530.0,1.66197812]
[1736957694477,0.0008547,99531.0,99530.0,1.6583955]
[1736957695676,0.0008547,99531.0,99530.0,1.6553955]
[1736957696024,0.0008547,99531.0,99530.0,1.6583955]
[1736957696663,0.0008547,99531.0,99530.0,1.6553955]
[1736957696843,0.0008547,99531.0,99530.0,1.6583955]
[1736957698741,0.0008547,99531.0,99530.0,0.1583955]
[1736957699324,0.0008547,99531.0,99530.0,1.6583955]
[1736957700341,0.0008547,99531.0,99530.0,1.63129487]
[1736957700547,0.0008547,99531.0,99530.0,1.5348955]
[1736957701951,0.0008547,99531.0,99530.0,1.5318955]
[1736957702156,0.0008547,99531.0,99530.0,1.50479487]
[1736957702305,0.0008547,99531.0,99530.0,0.0348955]
[1736957702677,0.0008547,99531.0,99530.0,1.5318955]
[1736957703120,0.0008547,99531.0,99530.0,1.5368955]
[1736957703522,0.0008547,99531.0,99530.0,1.50979487]
[1736957703728,0.0008547,99531.0,99530.0,1.50679487]
[1736957703928,0.0008547,99531.0,99530.0,1.51579487]
[1736957704305,0.0008547,99531.0,99530.0,1.5428955]
[1736957704762,0.0008547,99531.0,99530.0,1.63812242]
[1736957704964,0.0008547,99531.0,99530.0,1.72062242]
[1736957705250,0.0008547,99531.0,99530.0,1.72662242]
[1736957705489,0.0008547,99531.0,99530.0,1.71562242]
[1736957705707,0.0008547,99531.0,99530.0,1.72362242]
[1736957705978,0.0008547,99531.0,99530.0,1.72662242]
[1736957706168,0.0008547,99531.0,99530.0,1.59529487]
[1736957706325,0.0008547,99531.0,99530.0,1.6223955]
[1736957706521,0.0008547,99531.0,99530.0,1.6193955]
[1736957706726,0.0008547,99531.0,99530.0,1.6253955]
[1736957706926,0.0008547,99531.0,99530.0,1.6173955]
[1736957707322,0.0008547,99531.0,99530.0,1.6203955]
[1736957707527,0.0008547,99531.0,99530.0,1.6113955]
[1736957707947,0.0008547,99531.0,99530.0,1.51079487]
[1736957708507,0.0008547,99531.0,99530.0,1.71173887]
[1736957708842,0.0008547,99531.0,99530.0,1.51579487]
[1736957709369,0.0008547,99531.0,99530.0,1.51079487]
[1736957709954,0.0008547,99531.0,99530.0,1.5288955]
[1736957710156,0.0008547,99531.0,99530.0,1.6163955]
[1736957710359,0.0008547,99531.0,99530.0,1.6233955]
[1736957710569,0.0008547,99531.0,99530.0,1.72762242]
[1736957710777,0.0008547,99531.0,99530.0,1.77262242]
[1736957712768,0.0008547,99531.0,99530.0,1.64512242]
[1736957712947,0.0008547,99531.0,99530.0,1.7418395]
[1736957713937,0.0008547,99531.0,99530.0,1.50879487]
[1736957714142,0.0008547,99531.0,99530.0,1.50179487]
[1736957714573,0.0008547,99531.0,99530.0,1.51079487]
[1736957714800,0.0008547,99531.0,99530.0,1.50179487]
[1736957714974,0.0008547,99531.0,99530.0,1.51079487]
[1736957715306,0.0008547,99531.0,99530.0,1.51679487]
[1736957715933,0.0008547,99531.0,99530.0,1.51079487]
[1736957716137,0.0008547,99531.0,99530.0,0.01479487]
[1736957716344,0.0008547,99531.0,99530.0,0.00579487]
[1736957716528,0.0008547,99531.0,99530.0,1.50879487]
[1736957716821,0.0008547,99531.0,99530.0,1.50679487]
[1736957717060,0.0008547,99531.0,99530.0,1.51279487]
[1736957717465,0.0008547,99531.0,99530.0,1.50679487]
[1736957717584,0.0008547,99531.0,99530.0,1.51179487]
[1736957717964,0.0008547,99531.0,99530.0,1.50679487]
[1736957718913,0.0008547,99531.0,99530.0,1.51079487]
[1736957719392,0.0008547,99531.0,99530.0,1.50679487]
[1736957719775,0.0008547,99531.0,99530.0,1.51079487]
[1736957719980,0.0008547,99531.0,99530.0,1.50579487]
[1736957720517,0.0008547,99531.0,99530.0,1.51179487]
[1736957723576,0.0008547,99531.0,99530.0,1.69292242]
[1736957723775,0.0008547,99531.0,99530.0,1.77192242]
[1736957724386,0.0008547,99531.0,99530.0,1.77660129]
[1736957725552,0.0008547,99531.0,99530.0,1.77260129]
[1736957725761,0.0008547,99531.0,99530.0,1.7765469]
[1736957725965,0.0008547,99531.0,99530.0,1.7815469]
[1736957726160,0.0008547,99531.0,99530.0,1.7905469]
[1736957727014,0.0008547,99531.0,99530.0,1.7815469]
[1736957727221,0.0008547,99531.0,99530.0,1.7905469]
[1736957727720,0.00073353,99531.0,99530.0,1.7855469]
[1736957727924,0.00073353,99531.0,99530.0,1.7925469]
[1736957728333,0.00073353,99531.0,99530.0,1.80611767]
[1736957728633,0.00073353,99531.0,99530.0,1.67837437]
[1736957729874,0.00073353,99531.0,99530.0,1.52247374]
[1736957730425,0.00073353,99531.0,99530.0,0.02247374]
[1736957730855,0.00073353,99531.0,99530.0,0.01547374]
[1736957731056,0.00073353,99531.0,99530.0,1.51547374]
[1736957731263,0.00073353,99531.0,99530.0,1.52047374]
[1736957731461,0.00073353,99531.0,99530.0,1.67637437]
[1736957731660,0.00073353,99531.0,99530.0,1.67137437]
[1736957732090,0.00073353,99531.0,99530.0,1.66537437]
[1736957732635,0.00073353,99531.0,99530.0,1.67137437]
[1736957732841,0.00073353,99531.0,99530.0,1.66237437]
[1736957733051,0.00073353,99531.0,99530.0,1.63527374]
[1736957733260,0.00073353,99531.0,99530.0,1.64427374]
[1736957733437,0.00073353,99531.0,99530.0,1.51547374]
[1736957733844,0.00073353,99531.0,99530.0,0.01547374]
[1736957734023,0.00073353,99531.0,99530.0,0.02147374]
[1736957734388,0.00073353,99531.0,99530.0,1.52147374]
[1736957734647,0.00073353,99531.0,99530.0,1.51547374]
[1736957734784,0.00073353,99531.0,99530.0,1.52147374]
[1736957735392,0.00073353,99531.0,99530.0,1.50647374]
[1736957735593,0.00073353,99531.0,99530.0,1.51847374]
[1736957736023,0.00073353,99531.0,99530.0,1.51147374]
[1736957736229,0.00073353,99531.0,99530.0,1.51947374]
[1736957737697,0.00073353,99531.0,99530.0,1.51447374]
[1736957738114,0.00073353,99531.0,99530.0,1.51947374]
[1736957738521,0.00073353,99531.0,99530.0,1.51447374]
[1736957738722,0.00073353,99531.0,99530.0,1.51847374]
[1736957739135,0.00073353,99531.0,99530.0,1.51047374]
[1736957739987,0.00073353,99531.0,99530.0,1.51447374]
[1736957742413,0.02373353,99531.0,99530.0,1.51447374]
[1736957743167,0.00073353,99531.0,99530.0,1.51447374]
[1736957746362,0.00073353,99531.0,99530.0,1.74251837]
[1736957746563,0.00073353,99531.0,99530.0,1.78921837]
[1736957747282,0.00073353,99531.0,99530.0,1.89344529]
[1736957747483,0.00073353,99531.0,99530.0,1.97564529]
[1736957747651,0.00073353,99531.0,99530.0,2.07564529]
[1736957747849,0.00090483,99550.0,99530.0,2.07564529]
[1736957747850,0.00090483,99550.0,99549.0,0.35690663]
[1736957748055,0.00090483,99550.0,99549.0,0.46113355]
[1736957748260,0.00090483,99550.0,99549.0,0.46572369]
[1736957748503,0.00090483,99550.0,99549.0,1.96572369]
[1736957749265,0.00090483,99550.0,99549.0,1.97272369]
[1736957750742,0.00090483,99550.0,99549.0,1.97772369]
[1736957750910,0.00090483,99550.0,99549.0,1.87349677]
[1736957751141,0.00090483,99550.0,99549.0,1.82679677]
[1736957759169,0.00090483,99550.0,99549.0,1.82890125]
[1736957760376,0.00090483,99550.0,99549.0,0.24670125]
[1736957760789,0.00090483,99550.0,99549.0,1.74670125]
[1736957761919,0.00090483,99550.0,99549.0,1.51869462]
[1736957762908,0.00090483,99550.0,99549.0,0.01869462]
[1736957763154,0.00090483,99550.0,99549.0,0.012]
[1736957763676,0.17459028,99550.0,99549.0,0.012]
[1736957763886,0.17390483,99550.0,99549.0,0.012]
[1736957764083,0.17459028,99550.0,99549.0,0.007]
[1736957764300,0.3242172,99550.0,99549.0,0.007]
[1736957764598,0.39643112,99550.0,99549.0,0.011]
[1736957764953,0.200939,99533.0,99531.0,1.5]
[1736957765167,0.023,99532.0,99531.0,1.5]
[1736957766161,0.223942,99531.0,99530.0,0.00179487]
[1736957766364,0.47816892,99531.0,99530.0,0.00179487]
[1736957767781,0.47816892,99531.0,99530.0,0.00279487]
[1736957768217,0.47816892,99531.0,99530.0,0.00179487]
[1736957768418,0.373942,99531.0,99530.0,0.00179487]
[1736957768628,0.380582,99531.0,99530.0,0.00179487]
[1736957768831,0.003,99531.0,99530.0,0.00179487]
[1736957769628,0.002,99531.0,99530.0,1.50179487]
[1736957770007,0.002,99531.0,99530.0,1.50379487]
[1736957770245,0.002,99531.0,99530.0,1.50479487]
[1736957770450,0.2503,99531.0,99530.0,0.00479487]
[1736957770650,0.35452692,99531.0,99530.0,0.00479487]
[1736957771252,0.35452692,99531.0,99530.0,0.00379487]
[1736957771890,0.35452692,99531.0,99529.0,0.00179487]
[1736957771891,0.54684337,99530.0,99529.0,0.00179487]
[1736957772100,0.65107029,99530.0,99529.0,0.00179487]
[1736957772715,0.72637029,99530.0,99529.0,8.7e-07]
[1736957773524,0.73237029,99530.0,99529.0,0.00100087]
[1736957773969,0.72637029,99530.0,99529.0,8.7e-07]
[1736957774166,0.351009,99498.0,99497.0,1.5]
[1736957774372,0.023,99497.0,99488.0,0.0017955]
[1736957774576,0.374021,99492.0,99488.0,0.0017955]
[1736957774786,0.47824792,99492.0,99488.0,0.0017955]
[1736957775373,0.47824792,99492.0,99491.0,0.00194498]
[1736957776190,0.55114729,99492.0,99491.0,0.00194498]
[1736957776398,0.61272862,99492.0,99491.0,0.00194498]
[1736957776605,0.61072862,99492.0,99491.0,0.00194498]
[1736957776813,0.71072862,99492.0,99491.0,0.00194498]
[1736957777024,0.65314729,99492.0,99491.0,0.00194498]
[1736957777221,0.65314729,99492.0,99491.0,0.00494498]
[1736957777448,0.7502727,99492.0,99491.0,0.00494498]
[1736957777657,0.7502727,99492.0,99491.0,0.00194498]
[1736957777658,0.65514729,99492.0,99491.0,0.00194498]
[1736957778268,0.48224792,99492.0,99491.0,0.00194498]
[1736957778473,0.49909191,99492.0,99491.0,0.00194498]
[1736957778709,0.49709191,99492.0,99491.0,0.00194498]
[1736957778959,0.49509191,99492.0,99491.0,0.00194498]
[1736957779207,0.49795294,99492.0,99491.0,0.00194498]
[1736957779430,0.57085231,99492.0,99491.0,0.00194498]
[1736957779666,0.49795294,99492.0,99491.0,0.00294498]
[1736957780179,0.49795294,99492.0,99491.0,0.00194498]
[1736957780180,0.49495294,99492.0,99491.0,0.00194498]
[1736957780420,0.49595294,99492.0,99491.0,0.00194498]
[1736957780661,0.49595294,99492.0,99491.0,0.00294498]
[1736957780872,0.49495294,99492.0,99491.0,0.00294498]
[1736957781079,0.16020399,99492.0,99491.0,0.00194498]
[1736957781284,0.15,99492.0,99491.0,0.00194498]
[1736957781551,0.15,99492.0,99491.0,0.00294498]
[1736957781755,0.173,99492.0,99491.0,0.00294498]
[1736957781954,0.20099,99507.0,99492.0,0.02710063]
[1736957781955,0.200996,99504.0,99492.0,0.02710063]
[1736957782157,0.201,99502.0,99493.0,0.00504224]
[1736957782395,0.00068545,99502.0,99493.0,0.00504224]
[1736957784344,0.15,99511.0,99502.0,0.00503202]
[1736957784537,0.15,99511.0,99498.0,0.201009]
[1736957784538,0.023,99508.0,99493.0,0.004]
[1736957784810,0.023,99508.0,99497.0,0.02710063]
[1736957785036,0.20099,99507.0,99494.0,0.00498669]
[1736957785240,0.023,99506.0,99498.0,0.03208278]
[1736957785444,0.023,99506.0,99494.0,0.02710063]
[1736957785648,0.023,99504.0,99493.0,0.03010063]
[1736957785857,0.223998,99503.0,99502.0,0.001]
[1736957786537,0.373998,99503.0,99502.0,0.001]
[1736957786757,0.373998,99503.0,99502.0,0.00590001]
[1736957787002,0.47822492,99503.0,99502.0,0.001]
[1736957787243,0.023,99492.0,99491.0,0.00194498]
[1736957788038,0.10422692,99502.0,99491.0,0.00194498]
[1736957788039,0.200983,99511.0,99502.0,0.02710063]
[1736957788269,0.31749524,99510.0,99499.0,0.02710063]
[1736957788519,0.31749524,99510.0,99492.0,0.0486]
[1736957788520,0.223998,99503.0,99502.0,0.004]
[1736957788790,0.223998,99503.0,99502.0,0.001]
[1736957788791,0.200998,99503.0,99502.0,0.001]
[1736957789034,0.223998,99503.0,99502.0,0.00492015]
[1736957789288,0.001,99492.0,99491.0,0.01294498]
[1736957789727,0.52392637,99489.0,99488.0,0.0017955]
[1736957789939,0.54695437,99475.0,99449.0,0.09563398]
[1736957790148,0.54695437,99475.0,99474.0,0.02761137]
[1736957790149,0.65782129,99475.0,99474.0,0.02761137]
[1736957790384,0.65782129,99475.0,99449.0,0.09563398]
[1736957790385,0.25,99460.0,99449.0,0.09563398]
[1736957790599,0.224104,99451.0,99449.0,0.09563398]
[1736957790799,0.32833092,99451.0,99449.0,0.09563398]
[1736957791002,0.32833092,99451.0,99450.0,0.00135406]
[1736957791667,0.35698342,99451.0,99450.0,0.00135406]
[1736957791866,0.35698342,99451.0,99450.0,0.00235406]
[1736957791867,0.33497092,99451.0,99450.0,0.00235406]
[1736957792073,0.33857809,99451.0,99450.0,0.00235406]
[1736957792255,0.34521809,99451.0,99450.0,0.00135406]
[1736957792606,0.34521809,99451.0,99450.0,0.00435406]
[1736957792810,0.34521809,99451.0,99450.0,0.00335406]
[1736957793244,0.03324717,99451.0,99450.0,0.00435406]
[1736957793441,0.023,99451.0,99450.0,0.00435406]
[1736957793809,0.023,99451.0,99450.0,0.00235406]
[1736957794206,0.27722692,99451.0,99450.0,0.00435406]
[1736957796190,0.27722692,99451.0,99450.0,1.50435406]
[1736957796638,0.27722692,99451.0,99450.0,1.50953554]
[1736957797886,0.27722692,99451.0,99450.0,1.50853554]
[1736957798130,0.27722692,99451.0,99450.0,1.50653554]
[1736957798336,0.27822692,99451.0,99450.0,1.50753554]
[1736957798541,0.27722692,99451.0,99450.0,0.00753554]
[1736957798989,0.27822692,99451.0,99450.0,0.00135406]
[1736957799197,0.27722692,99451.0,99450.0,0.00335406]
[1736957799400,0.45012629,99451.0,99450.0,0.00335406]
[1736957799810,0.35012629,99451.0,99450.0,0.00335406]
[1736957799965,0.38105512,99451.0,99450.0,0.00435406]
[1736957800168,0.27722692,99451.0,99450.0,0.00435406]
[1736957800539,0.201078,99464.0,99452.0,0.02710063]
[1736957800719,0.201088,99459.0,99452.0,0.02710063]
[1736957800928,0.201088,99459.0,99458.0,1.5]
[1736957801133,0.224088,99459.0,99458.0,1.5]
[1736957801285,0.201079,99463.0,99458.0,1.50538026]
[1736957801723,0.402159,99463.0,99458.0,1.50538026]
[1736957802099,0.023,99460.0,99458.0,1.50538026]
[1736957802345,0.001,99459.0,99458.0,1.50938026]
[1736957802543,0.023,99461.0,99458.0,1.50838026]
[1736957802965,0.023,99459.0,99458.0,1.51238026]
[1736957803165,0.023,99459.0,99458.0,1.50838026]
[1736957803814,0.023,99459.0,99458.0,1.50538026]
[1736957803992,0.023,99460.0,99458.0,1.50538026]
[1736957804129,0.023,99463.0,99458.0,1.50838026]
[1736957804564,0.001,99459.0,99458.0,1.51038026]
[1736957804805,0.224087,99459.0,99458.0,1.50538026]
[1736957805015,0.224087,99459.0,99458.0,1.50838026]
[1736957805180,0.224087,99459.0,99458.0,1.51338026]
[1736957805389,0.001,99460.0,99459.0,0.02710063]
[1736957805589,0.201062,99472.0,99469.0,0.02710063]
[1736957806044,0.21099706,99479.0,99470.0,0.02710063]
[1736957806192,0.1,99503.0,99460.0,0.0793]
[1736957806193,0.00664,99487.0,99478.0,0.02710063]
[1736957806388,0.201043,99482.0,99479.0,0.00523516]
[1736957806656,0.201043,99482.0,99478.0,0.02710063]
[1736957806999,0.023,99481.0,99478.0,0.02710063]
[1736957807503,0.023,99482.0,99478.0,0.02710063]
[1736957807884,0.023,99481.0,99467.0,0.02710063]
[1736957808148,0.13951124,99480.0,99478.0,0.002]
[1736957808346,0.12722692,99480.0,99478.0,0.002]
[1736957808503,0.425094,99479.0,99478.0,0.002]
[1736957808838,0.023,99470.0,99465.0,0.02710063]
[1736957809009,0.201091,99457.0,99456.0,0.02710063]
[1736957809230,0.023,99458.0,99456.0,0.02710063]
[1736957809396,0.201091,99457.0,99456.0,0.02710063]
[1736957809602,0.023,99456.0,99454.0,0.02710063]
[1736957810806,0.224095,99455.0,99454.0,0.02710063]
[1736957811811,0.023,99455.0,99454.0,0.02710063]
[1736957811987,0.023,99455.0,99454.0,0.03110063]
[1736957812407,0.024,99455.0,99454.0,0.03610063]
[1736957812608,0.024,99455.0,99454.0,0.02710063]
[1736957812824,0.024,99455.0,99454.0,0.03110063]
[1736957813021,0.025,99455.0,99454.0,0.03610063]
[1736957813467,0.025,99455.0,99454.0,1.53610063]
[1736957814301,0.002,99455.0,99454.0,1.53610063]
[1736957814683,0.002,99455.0,99454.0,1.53210063]
[1736957815201,0.002,99455.0,99454.0,1.53610063]
[1736957816064,0.002,99455.0,99454.0,1.509]
[1736957816355,0.002,99455.0,99454.0,0.009]
[1736957816557,0.002,99455.0,99454.0,0.03610063]
[1736957818008,0.002,99455.0,99454.0,1.53610063]
[1736957818208,0.002,99455.0,99454.0,1.54135099]
[1736957818411,0.025,99455.0,99454.0,1.54135099]
[1736957818812,0.002,99455.0,99454.0,1.54135099]
[1736957820796,0.002,99455.0,99454.0,1.54220659]
[1736957821146,0.00179677,99474.0,99473.0,0.30345963]